Cogmind - Beta 14 @@@ ROGUE MODE // 2024.12.20 @ 13:55:02 Player: Leif Result: Destroyed by S-27 Virus with Autogun Performance ------------- Evolutions (4) 2000 Regions Visited (7) 1400 Robots Destroyed (18) 90 Value Destroyed (571) 571 Prototype IDs (1) 20 Alien Tech Used (0) 0 Bonus (0) 0 TOTAL SCORE: 4081 Bonus ------- None Cogmind --------- Core Integrity 0/850 Matter 157/300 Energy 98/100 System Corruption 8% Temperature Cool (0) Movement Core (50) Location -6/Lower Caves Parts ------- > --- POWER (2) -------- (None) > --- PROPULSION (5) --- (None) > --- UTILITY (4) ------ Target Analyzer > --- WEAPON (4) ------- (None) > --- INVENTORY (5) ---- Armored Huge Wheel Peak State ------------ > --- POWER ------------ Ion Engine Ion Engine > --- PROPULSION ------- Flexi-carbon Leg Flexi-carbon Leg Flexi-carbon Leg Flexi-carbon Leg > --- UTILITY ---------- Advanced Terrain Scanner Improved Targeting Computer Target Analyzer > --- WEAPON ----------- Field Laser Field Laser Field Laser Field Laser > --- INVENTORY -------- Armored Huge Wheel [Rating: 44] Favorites ----------- Power Ion Engine Engine Ion Engine Propulsion Flexi-carbon Leg Leg Flexi-carbon Leg Wheel Armored Huge Wheel Flight Unit Improved Flight Unit Utility Target Analyzer Device Advanced Terrain Scanner Storage Small Storage Unit Processor Target Analyzer Weapon Assault Rifle Energy Gun Field Laser Ballistic Gun Assault Rifle Ballistic Cannon Flak Cannon Special Melee Weapon Datajack Build | -11 -10 -9 -9 -8 -7 -6 -6 ------- Run | Yrd Mat Mat Min Mat Fac Fac Low Slots Evolved 8 | . . 2 . 2 2 2 . Power 1 | . . . . . 1 . . Propulsion 3 | . . . . 2 . 1 . Utility 2 | . . . . . 1 1 . Weapon 2 | . . 2 . . . . . Parts Attached 34 | 6 1 9 . 3 . 15 . Power 5 | 1 . . . 2 . 2 . Engine 5 | 1 . . . 2 . 2 . Core . | . . . . . . . . Reactor . | . . . . . . . . Propulsion 12 | 2 . 5 . . . 5 . Treads . | . . . . . . . . Leg 6 | 2 . . . . . 4 . Wheel 3 | . . 2 . . . 1 . Hover . | . . . . . . . . Flight 3 | . . 3 . . . . . Utility 4 | 1 . 1 . . . 2 . Device 1 | . . . . . . 1 . Storage 1 | 1 . . . . . . . Processor 2 | . . 1 . . . 1 . Hackware . | . . . . . . . . Protection . | . . . . . . . . Artifact . | . . . . . . . . Weapon 13 | 2 1 3 . 1 . 6 . Energy Gun 7 | . 1 1 . . . 5 . Energy Cannon . | . . . . . . . . Ballistic Gun 4 | 2 . 1 . 1 . . . Ballistic Cannon 1 | . . . . . . 1 . Launcher . | . . . . . . . . Special Weapon . | . . . . . . . . Impact Weapon . | . . . . . . . . Slashing Weapon . | . . . . . . . . Piercing Weapon . | . . . . . . . . Special Melee Weapon 1 | . . 1 . . . . . Unidentified Prototypes 1 | . . 1 . . . . . Parts Lost 17 | . 2 5 . . 3 7 . Power 3 | . . 1 . . . 2 . Propulsion 5 | . 1 1 . . 2 1 . Utility 2 | . . . . . . 2 . Weapon 7 | . 1 3 . . 1 2 . Highest Loss Streak 6 | . 2 4 . . 3 6 . To Critical Strikes . | . . . . . . . . Average Slot Usage (%) 46 | . 79 75 55 45 24 45 6 Engine 5 | . 14 7 . 3 3 4 . Leg 8 | . 23 3 . . . 11 . Wheel 2 | . . 11 . . . 1 . Flight 2 | . . 2 22 18 8 . . Device 1 | . . . . . . 3 . Storage 4 | . 14 11 11 6 . . . Processor 7 | . . 8 11 9 7 11 6 Energy Gun 6 | . 2 18 11 6 . 8 . Ballistic Gun 5 | . 24 5 . 3 3 . . Special Melee Weapon 1 | . . 7 . . . . . Peak Build Rating 44 | 6 6 14 10 11 10 44 3 Average Rating 12 | 4 5 9 10 9 6 25 3 On Entrance 6 | . 6 6 10 10 10 3 3 Naked Turns . | . . . . . . . . Heaviest Build 23 | 14 15 17 8 8 8 23 . Greatest Support 80 | 20 20 26 9 9 9 80 3 Greatest Overweight (x) 5 | . 1 1 . . . 5 . Average Overweight (x) . | . . . . . . . . Largest Inventory Capacity 8 | 8 8 8 8 8 5 5 5 Average Capacity 6 | 6 8 8 8 6 5 5 5 Most Carried 6 | 3 6 6 3 3 2 5 2 Average Carried 2 | 1 3 3 3 2 1 2 2 Final Capacity 8 | 8 8 8 8 5 5 5 5 Final Carried 6 | 3 6 3 3 1 2 2 2 Class Distribution -------------------- 86% | Mutant 13% | Gunner Dominant Class ---------------- Mutant | -10/Materials Mutant | -9/Materials Mutant | -9/Mines Mutant | -8/Materials Mutant | -7/Factory Mutant | -6/Factory Mutant | -6/Lower Caves Resources | -11 -10 -9 -9 -8 -7 -6 -6 ----------- Run | Yrd Mat Mat Min Mat Fac Fac Low Matter Collected 563 | 212 188 66 . 41 . . 56 Remotely . | . . . . . . . . Salvage Created 608 | . 315 218 . . . 75 . Parts 32 | . 22 8 . . . 2 . Haulers Intercepted . | . . . . . . . . Recyclers Shooed . | . . . . . . . . Parts Field Recycled . | . . . . . . . . Retrieved Matter . | . . . . . . . . Parts Self-Destructed . | . . . . . . . . Prevented . | . . . . . . . . Kills | -11 -10 -9 -9 -8 -7 -6 -6 ------- Run | Yrd Mat Mat Min Mat Fac Fac Low Combat Hostiles Destroyed 17 | . 7 7 . . . 3 . Guns 13 | . 7 6 . . . . . Cannons 1 | . . . . . . 1 . AOE 1 | . . . . . . 1 . Classes Destroyed 5 | . 2 2 . . . 1 . Operator 1 | . 1 . . . . . . Swarmer 5 | . . 3 . . . 2 . Grunt 10 | . 7 3 . . . . . Sentry 1 | . . 1 . . . . . Programmer 1 | . . . . . . 1 . Best Kill Streak 6 | . 6 4 . . . 2 . Combat Bots Only 4 | . 4 4 . . . 2 . Max Kills in Single Turn 1 | . 1 1 . . . 1 . Gunslinging . | . . . . . . . . Exploded 1 | . . . . . . 1 . Melee . | . . . . . . . . Uniques/NPCs Destroyed . | . . . . . . . . Combat | -11 -10 -9 -9 -8 -7 -6 -6 -------- Run | Yrd Mat Mat Min Mat Fac Fac Low Hostile Shots Fired 317 | . 58 50 . 2 23 175 9 Missed 110 | . 13 11 . . 11 70 5 Damage Taken 2991 | . 521 366 . 28 446 1568 62 Core 1393 | . 96 106 . . 332 797 62 Absorbed by Shields . | . . . . . . . . Core Remaining (%) 77 | 100 61 . 73 100 52 . . Volleys Fired 64 | . 26 22 . 4 . 12 . Largest 4 | . 2 3 . 1 . 4 . Hottest 252 | . 85 125 . 23 . 252 . Shots Fired 121 | . 46 39 . 4 . 32 . Gun 115 | . 46 39 . 4 . 26 . Cannon 6 | . . . . . . 6 . Launcher . | . . . . . . . . Special . | . . . . . . . . Kinetic 59 | . 45 4 . 4 . 6 . Thermal 56 | . 1 35 . . . 20 . Explosive . | . . . . . . . . Electromagnetic 6 | . . . . . . 6 . Robot Hit Streak 9 | . 7 5 . 3 . 9 . Robot Miss Streak 8 | . 4 2 . 3 . 8 . Penetration Max . | . . . . . . . . Secondary Targets 1 | . 1 . . . . . . Max Gunslinging Chain 1 | . 1 . . . . . . Shots Hit Robots 77 | . 29 27 . 1 . 20 . Core Hits 33 | . 15 10 . . . 8 . Critical Kills . | . . . . . . . . Critical Parts Destroyed 1 | . 1 . . . . . . Critical Strikes 5 | . 1 2 . . . 2 . Burn 4 | . . 2 . . . 2 . Destroy 1 | . 1 . . . . . . Melee Attacks 1 | . . 1 . . . . . Impact . | . . . . . . . . Slashing . | . . . . . . . . Piercing . | . . . . . . . . Sneak Attacks . | . . . . . . . . Combat Hostiles . | . . . . . . . . Follow-up Attacks . | . . . . . . . . Damage Inflicted 1249 | . 403 380 . 48 . 418 . Guns 1104 | . 403 380 . 48 . 273 . Cannons 86 | . . . . . . 86 . Explosions 58 | . . . . . . 58 . Melee . | . . . . . . . . Ramming 1 | . . . . . . 1 . Kinetic 583 | . 403 46 . 48 . 86 . Thermal 639 | . . 334 . . . 305 . Explosive . | . . . . . . . . Electromagnetic 26 | . . . . . . 26 . Impact . | . . . . . . . . Slashing . | . . . . . . . . Piercing . | . . . . . . . . Highest Corruption 8 | . . . . . . 8 8 Average Corruption 7 | . . . . . . 7 8 Corruption Purged . | . . . . . . . . Corruption Blocked . | . . . . . . . . Effects 8 | . . . . . . 3 5 Message Errors 4 | . . . . . . 2 2 Matter Fused 1 | . . . . . . . 1 Heat Flow Errors 1 | . . . . . . 1 . Energy Discharges 1 | . . . . . . . 1 Alerts 1 | . . . . . . . 1 Overload Shots . | . . . . . . . . Overflow Damage . | . . . . . . . . Projectiles . | . . . . . . . . Explosions . | . . . . . . . . Melee . | . . . . . . . . Knockbacks 5 | . . . . . . 5 . Impact . | . . . . . . . . Kinetic 5 | . . . . . . 5 . Secondary . | . . . . . . . . Self-Inflicted Damage 56 | . . . . . . 56 . Shots 1 | . . . . . . 1 . Rammed 1 | . . . . . . 1 . Targets Rammed 1 | . . . . . . 1 . Kicked . | . . . . . . . . Crushed . | . . . . . . . . Highest Temperature 644 | . 35 272 . . . 644 . Average Temperature 150 | . 19 116 . . . 240 . Received Heat Transfer 576 | . 291 78 . 9 . 198 . Effects 8 | . . . . . . 8 . Shutdowns 2 | . . . . . . 2 . Interference 3 | . . . . . . 3 . Matter Decay 1 | . . . . . . 1 . Short Circuit 2 | . . . . . . 2 . Siege Activations . | . . . . . . . . Robots Corrupted . | . . . . . . . . Combat Hostiles . | . . . . . . . . Parts Fried . | . . . . . . . . Impact Corruptions . | . . . . . . . . Robots Melted 2 | . . 1 . . . 1 . Combat Hostiles 2 | . . 1 . . . 1 . Parts Melted 3 | . . 1 . . . 2 . Heat Transferred 1595 | . . 916 . . . 679 . Parts Sabotaged . | . . . . . . . . Parts Stolen . | . . . . . . . . Parts Stripped . | . . . . . . . . Power Chain Reactions 1 | . . . . . . 1 . Alert | -11 -10 -9 -9 -8 -7 -6 -6 ------- Run | Yrd Mat Mat Min Mat Fac Fac Low Peak Influence 207 | . 199 207 27 40 108 165 . Initial 83 | . . 83 27 10 18 52 . Average 76 | . 91 114 27 27 38 86 . Maximum Alert Level 1 | . . 1 . . . . . Low Security (%) 98 | 100 100 92 100 100 100 100 . Level 1 1 | . . 7 . . . . . Level 2 . | . . . . . . . . Level 3 . | . . . . . . . . Level 4 . | . . . . . . . . Level 5 . | . . . . . . . . High Security . | . . . . . . . . Max Security . | . . . . . . . . Squads Dispatched 8 | . 4 1 . . . 3 . Investigation 1 | . 1 . . . . . . Extermination 1 | . . . . . . 1 . Reinforcement 4 | . 3 1 . . . . . Assault . | . . . . . . . . Garrison 2 | . . . . . . 2 . Intercept . | . . . . . . . . Searches Triggered . | . . . . . . . . Construction Impeded . | . . . . . . . . Haulers Reinforced . | . . . . . . . . Active Scanning Responses . | . . . . . . . . Cargo Convoy Interrupts . | . . . . . . . . Stealth | -11 -10 -9 -9 -8 -7 -6 -6 --------- Run | Yrd Mat Mat Min Mat Fac Fac Low Distress Signals 4 | . . 2 . . 1 1 . Communications Jammed . | . . . . . . . . Distress Signals . | . . . . . . . . Times Spotted 59 | . 12 14 . 3 9 17 4 Peak Tracking Total 12 | . 4 7 . 3 9 12 4 Tactical Retreats 6 | . . . . . 3 3 . Traps | -11 -10 -9 -9 -8 -7 -6 -6 ------- Run | Yrd Mat Mat Min Mat Fac Fac Low Traps Triggered 3 | . 1 . . . 2 . . Indirectly . | . . . . . . . . Trap Hack Attempts . | . . . . . . . . Triggered . | . . . . . . . . Disarmed . | . . . . . . . . Reprogrammed . | . . . . . . . . Reused . | . . . . . . . . Traps Extracted . | . . . . . . . . Installed . | . . . . . . . . Triggered . | . . . . . . . . Machines | -11 -10 -9 -9 -8 -7 -6 -6 ---------- Run | Yrd Mat Mat Min Mat Fac Fac Low Machines Disabled . | . . . . . . . . Max in Single Turn . | . . . . . . . . Machines Repaired . | . . . . . . . . Machines Dismantled . | . . . . . . . . Machines Sabotaged . | . . . . . . . . Overloaded Fab Kills . | . . . . . . . . Hacking | -11 -10 -9 -9 -8 -7 -6 -6 --------- Run | Yrd Mat Mat Min Mat Fac Fac Low Machines Accessed 4 | . 1 1 . . . 2 . Terminals 4 | . 1 1 . . . 2 . Fabricators . | . . . . . . . . Repair Stations . | . . . . . . . . Recycling Units . | . . . . . . . . Scanalyzers . | . . . . . . . . Garrison Access . | . . . . . . . . Total Hacks 8 | . 3 1 . . . 4 . Successful 4 | . 2 1 . . . 1 . Failed 4 | . 1 . . . . 3 . Catastrophic . | . . . . . . . . Database Lockouts . | . . . . . . . . Manual 1 | . . 1 . . . . . Terminals 8 | . 3 1 . . . 4 . Fabricators . | . . . . . . . . Repair Stations . | . . . . . . . . Recycling Units . | . . . . . . . . Scanalyzers . | . . . . . . . . Garrison Access . | . . . . . . . . Terminal Hacks 4 | . 2 1 . . . 1 . Open DSF 1 | . . . . . . 1 . Branch Access Points 1 | . 1 . . . . . . Emergency Access Points 1 | . 1 . . . . . . Unreport Threat 1 | . . 1 . . . . . Fabricator Hacks . | . . . . . . . . Repair Station Hacks . | . . . . . . . . Recycling Unit Hacks . | . . . . . . . . Scanalyzer . | . . . . . . . . Garrison Access Hacks . | . . . . . . . . Unauthorized Hacks . | . . . . . . . . Terminals . | . . . . . . . . Fabricators . | . . . . . . . . Repair Stations . | . . . . . . . . Recycling Units . | . . . . . . . . Scanalyzers . | . . . . . . . . Garrison Access . | . . . . . . . . Data Cores Recovered . | . . . . . . . . Used . | . . . . . . . . Hacking Detections 3 | . 1 . . . . 2 . Full Trace Events . | . . . . . . . . Feedback Events . | . . . . . . . . Feedback Blocked . | . . . . . . . . Robot Schematics Acquired . | . . . . . . . . Robots Built . | . . . . . . . . Authchips . | . . . . . . . . Time . | . . . . . . . . Total Robot Build Rating . | . . . . . . . . Part Schematics Acquired . | . . . . . . . . Parts Built . | . . . . . . . . Authchips . | . . . . . . . . Time . | . . . . . . . . Total Part Build Rating . | . . . . . . . . Parts Repaired . | . . . . . . . . Time . | . . . . . . . . Parts Recycled . | . . . . . . . . Recycled Matter . | . . . . . . . . Retrieved Matter . | . . . . . . . . Retrieved Components . | . . . . . . . . Parts Scanalyzed . | . . . . . . . . Part Schematics Acquired . | . . . . . . . . Parts Damaged . | . . . . . . . . Bothacking | -11 -10 -9 -9 -8 -7 -6 -6 ------------ Run | Yrd Mat Mat Min Mat Fac Fac Low Used RIF Installer . | . . . . . . . . Robots Hacked . | . . . . . . . . Non-combat . | . . . . . . . . Combat . | . . . . . . . . Robot Hacks Applied . | . . . . . . . . Relay Couplers Released . | . . . . . . . . Fabnet Peak Effective % . | . . . . . . . . Robots Rewired . | . . . . . . . . Allies Hacked . | . . . . . . . . Hacks Repelled . | . . . . . . . . Allies | -11 -10 -9 -9 -8 -7 -6 -6 -------- Run | Yrd Mat Mat Min Mat Fac Fac Low Total Allies . | . . . . . . . . Largest Group . | . . . . . . . . Highest-Rated Group . | . . . . . . . . Highest-Rated Ally . | . . . . . . . . Total Orders . | . . . . . . . . Ally Attacks . | . . . . . . . . Total Damage . | . . . . . . . . Kills . | . . . . . . . . Allies Corrupted . | . . . . . . . . Allies Melted . | . . . . . . . . Intel | -11 -10 -9 -9 -8 -7 -6 -6 ------- Run | Yrd Mat Mat Min Mat Fac Fac Low Robot Analysis Total . | . . . . . . . . Derelict Logs Recovered . | . . . . . . . . Drone Launches . | . . . . . . . . Drone Recoveries . | . . . . . . . . Exploration | -11 -10 -9 -9 -8 -7 -6 -6 ------------- Run | Yrd Mat Mat Min Mat Fac Fac Low Turns Passed 1369 | 59 217 189 18 61 181 457 187 Spaces Moved 1453 | 46 95 91 49 132 430 420 190 Core 592 | 15 . . . . 165 222 190 Treads . | . . . . . . . . Legs 282 | 31 95 28 . . . 128 . Wheels 98 | . . 28 . . . 70 . Hover . | . . . . . . . . Flight 481 | . . 35 49 132 265 . . Fastest Speed 37 | 50 120 37 37 37 37 50 50 Average Speed 64 | 97 133 101 37 37 41 80 50 Slowest Speed 300 | 120 190 190 37 37 50 300 50 Overloaded Moves . | . . . . . . . . Propulsion Burnouts . | . . . . . . . . Robots Hopped 1 | . . . . 1 . . . Cave-ins Triggered . | . . . . . . . . Exploration Rate (%) 15 | 3 16 16 20 17 18 17 20 Regions Visited 7 Branch Regions 2 Pre-discovered Areas . | . . . . . . . . Known Exits Taken . | . . . . . . . . Unknown Exits Taken 7 | 1 1 1 1 1 1 1 . Scrap Searched 1 | . . . . . . . 1 Spaces Dug . | . . . . . . . . Terrain Destroyed 7 | . . . . . . 7 . Melee . | . . . . . . . . Projectile . | . . . . . . . . AOE 7 | . . . . . . 7 . Terrain Rammed . | . . . . . . . . Walls Destroyed . | . . . . . . . . Machines Disabled . | . . . . . . . . Actions | -11 -10 -9 -9 -8 -7 -6 -6 --------- Run | Yrd Mat Mat Min Mat Fac Fac Low Total 1766 | 60 140 150 48 140 430 516 282 Wait 176 | . 15 20 . . . 49 92 Move 1445 | 45 94 90 48 129 429 420 190 Hop 1 | . . . . 1 . . . Pick Up 29 | 9 4 4 . . . 12 . Fast Attach 2 | . . . . . . 2 . Attach 32 | 6 1 9 . 3 . 13 . Detach 4 | . . 2 . 1 1 . . Swap . | . . . . . . . . Drop 12 | . . 2 . 2 . 8 . Fire 64 | . 26 22 . 4 . 12 . Melee 1 | . . 1 . . . . . Ram . | . . . . . . . . Kick . | . . . . . . . . Crush . | . . . . . . . . Escape Stasis . | . . . . . . . . Rewire . | . . . . . . . . Trap . | . . . . . . . . Miscellaneous . | . . . . . . . . Route ------- -11/Scrapyard -10/Materials (discovered 3 exits: *Mat / Min x2) -9/Materials -9/Mines -8/Materials -7/Factory -6/Factory -6/Lower Caves History --------- Turn | Location | Event 15 | -11/Scrapyard | Discovered new exit (range 15) 60 | -11/Scrapyard | Entered Materials 64 | -10/Materials | Identified exit to Mines 222 | -10/Materials | Discovered new exit (range 11) 277 | -10/Materials | Entered another Materials area 277 | -9/Materials | Evolved 2 slots: Weapon x2 448 | -9/Materials | Lost 4 parts (1p1n2w) 464 | -9/Materials | Discovered new exit (range 6) 466 | -9/Materials | Entered Mines 478 | -9/Mines | Discovered new exit (range 13) 484 | -9/Mines | Entered Materials 484 | -8/Materials | Evolved 2 slots: Propulsion x2 540 | -8/Materials | Discovered new exit (range 15) 545 | -8/Materials | Entered Factory 545 | -7/Factory | Evolved 2 slots: Power x1, Utility x1 640 | -7/Factory | Build established: Mutant 674 | -7/Factory | Lost 3 parts (2n1w) 719 | -7/Factory | Discovered new exit (range 13) 726 | -7/Factory | Entered another Factory area 726 | -6/Factory | Evolved 2 slots: Propulsion x1, Utility x1 1068 | -6/Factory | Garrison activated, responded to threat 1101 | -6/Factory | Core integrity fell below 50% 1125 | -6/Factory | Lost 6 parts (1p1n2u2w) 1152 | -6/Factory | Spotted B-75 Beast 1174 | -6/Factory | Discovered new exit (range 15) 1175 | -6/Factory | Core integrity fell below 20% 1183 | -6/Factory | Entered Lower Caves 1370 | -6/Lower Caves | Destroyed by S-27 Virus with Autogun Last Messages --------------- 01174_ EXIT=FOUND 01174_ Knocked back. 01179_ Penetrated by Slug. 01179_ Knocked back. 01179_ Matter Pump disabled. 01182_ SWQET,VCYG991DTY1R <,BV%OJO4=0O4 01183_ Slammed into H-61 Shepherd. LOCATION=UNKNOWN GOAL=ESCAPE 01210_ Searching scrap... 01210_ Found Hvy. Battle Rifle. 01210_ Found Imp. Cryofiber Web. 01210_ Found 56 Matter. 01211_ Acquired 56 matter. 01230_ System corrupted: IFF burst signal emitted. 01249_ System corrupted: Matter fused (-10). 01289_ QDJM QBUXFIV R,DJ| DNGO6E%= 01311_ System corrupted: Energy discharge (-40). 01354_ H3,GVR0QKJZFQ